fUSD/lending_fUSD_20250226
["ID","MTS","AMOUNT","RATE_DAILY","PERIOD"]
[354607804,1740595884819,-1469.5,0.00036712,14]
[354607806,1740595884829,-500.0,0.00036712,14]
[354607808,1740595884840,-500.0,0.00036712,14]
[354607809,1740595884849,-500.0,0.00036712,14]
[354607811,1740595884859,-1970.34,0.00036712,14]
[354607813,1740595884869,-1219.67,0.00036712,14]
[354607815,1740595884879,-500.0,0.00036712,14]
[354607817,1740595884890,-500.0,0.00036712,14]
[354607819,1740595884899,-500.0,0.00036712,14]
[354607821,1740595884909,-1258.23,0.00036712,14]
[354607823,1740595884919,-802.71,0.00036712,14]
[354607825,1740595884929,-1003.98,0.00036712,14]
[354607827,1740595884941,-1048.22,0.00036712,14]
[354607829,1740595884961,-500.0,0.00036712,14]
[354607831,1740595884973,-500.0,0.00036712,14]
[354607833,1740595884982,-500.0,0.00036712,14]
[354607835,1740595884998,-500.0,0.00036712,14]
[354607837,1740595885008,-12754.69,0.00036712,14]
[354607839,1740595885018,-760.48,0.00036712,14]
[354607841,1740595885028,-1559.74,0.00036712,14]
[354607843,1740595885039,-1039.17,0.00036712,14]
[354607845,1740595885048,-500.0,0.00036712,14]
[354607847,1740595885059,-968.47,0.00036712,14]
[354607849,1740595885071,-975.3,0.00036712,14]
[354607851,1740595885084,-884.61,0.00036712,14]
[354607853,1740595885097,-581.51,0.00036712,14]
[354607855,1740595885108,-677.65,0.00036712,14]
[354607857,1740595885118,-493.61043488,0.00036712,14]
[354607859,1740595885129,-559.35,0.00036712,14]
[354607861,1740595885142,-500.0,0.00036712,14]
[354607863,1740595885154,-1068.0,0.00036712,14]
[354607865,1740595885165,-500.0,0.00036712,14]
[354607867,1740595885177,-500.0,0.00036712,14]
[354607869,1740595885189,-1096.63,0.00036712,14]
[354607871,1740595885200,-1472.3,0.00036712,14]
[354607873,1740595885212,-252.24432202,0.00036712,14]
[354607875,1740595885222,-882.85,0.00036712,14]
[354607877,1740595885235,-1708.56,0.00036712,14]
[354607879,1740595885248,-500.0,0.00036712,14]
[354607881,1740595885260,-505.62,0.00036712,14]
[354607883,1740595885271,-966.9,0.00036712,14]
[354607885,1740595885283,-1141.53,0.00036712,7]
[354607887,1740595885294,-1382.5,0.00036712,14]
[354607889,1740595885306,-811.04,0.00036712,14]
[354607891,1740595885317,-669.94,0.00036712,14]
[354607893,1740595885327,-691.77,0.00036712,14]
[354607895,1740595885338,-530.0,0.00036712,14]
[354607897,1740595885354,-1910.93,0.00036712,14]
[354607899,1740595885365,-500.0,0.00036712,14]
[354607901,1740595885375,-500.0,0.00036712,14]
[354607903,1740595885386,-874.49,0.00036712,14]
[354607904,1740595885396,-776.22,0.00036712,14]
[354607906,1740595885407,-2493.41,0.00036712,14]
[354607908,1740595885418,-811.0,0.00036712,14]
[354607910,1740595885428,-2617.36,0.00036712,14]
[354607912,1740595885439,-1621.78,0.00036712,14]
[354607914,1740595885452,-2143.28,0.00036712,14]
[354607916,1740595885463,-500.0,0.00036712,14]
[354607918,1740595885473,-500.0,0.00036712,14]
[354607920,1740595885483,-2319.53,0.00036712,14]
[354607922,1740595885494,-500.0,0.00036712,14]
[354607924,1740595885505,-500.0,0.00036712,14]
[354607926,1740595885516,-529.04,0.00036712,14]
[354607928,1740595885526,-1163.2,0.00036712,14]
[354607930,1740595885536,-768.45,0.00036712,14]
[354607932,1740595885546,-1841.79,0.00036712,14]
[354607934,1740595885557,-500.0,0.00036712,14]
[354607936,1740595885568,-500.0,0.00036712,14]
[354607938,1740595885579,-500.0,0.00036712,14]
[354607940,1740595885592,-500.0,0.00036712,14]
[354607942,1740595885603,-911.1,0.00036712,14]
[354607944,1740595885615,-500.0,0.00036712,14]
[354607946,1740595885625,-1280.98,0.00036712,14]
[354607948,1740595885636,-2143.46,0.00036712,14]
[354607950,1740595885646,-1855.75,0.00036712,14]
[354607952,1740595885659,-500.0,0.00036712,14]
[354607954,1740595885670,-873.58,0.00036712,14]
[354607956,1740595885681,-939.46,0.00036712,14]
[354607958,1740595885692,-500.0,0.00036712,14]
[354607960,1740595885703,-500.0,0.00036712,14]
[354607962,1740595885714,-1902.32,0.00036712,14]
[354607964,1740595885725,-500.0,0.00036712,14]
[354607966,1740595885735,-1142.01,0.00036712,14]
[354607968,1740595885746,-938.37,0.00036712,14]
[354607970,1740595885756,-800.79,0.00036712,14]
[354607972,1740595885766,-2507.28,0.00036712,2]
[354607974,1740595885776,-512.47,0.00036712,14]
[354607976,1740595885787,-500.0,0.00036712,14]
[354607978,1740595885797,-1981.71,0.00036712,14]
[354607980,1740595885807,-731.9,0.00036712,14]
[354607982,1740595885816,-500.0,0.00036712,14]
[354607983,1740595885826,-1276.51,0.00036712,14]
[354607985,1740595885836,-708.24,0.00036712,14]
[354607987,1740595885848,-500.0,0.00036712,14]
[354607989,1740595885858,-2733.74,0.00036712,14]
[354607991,1740595885868,-2252.01,0.00036712,14]
[354607993,1740595885878,-1022.27,0.00036712,14]
[354607995,1740595885887,-891.14,0.00036712,14]
[354607997,1740595885898,-500.0,0.00036712,14]
[354607999,1740595885908,-642.98,0.00036712,14]
[354608001,1740595885918,-552.36,0.00036712,14]
[354608003,1740595885928,-630.12,0.00036712,14]
[354608005,1740595885938,-500.0,0.00036712,14]
[354608007,1740595885950,-1991.31,0.00036712,14]
[354608009,1740595885961,-1294.07,0.00036712,14]
[354608011,1740595885971,-1853.21,0.00036712,14]
[354608013,1740595885983,-630.96,0.00036712,14]
[354608015,1740595885994,-1573.28,0.00036712,14]
[354608017,1740595886004,-2426.57,0.00036712,14]
[354608019,1740595886014,-2490.78,0.00036712,14]
[354608021,1740595886024,-1150.32,0.00036712,14]
[354608023,1740595886035,-715.02,0.00036712,14]
[354608025,1740595886045,-3484.94,0.00036712,14]
[354608026,1740595886055,-2771.33,0.00036712,14]
[354608028,1740595886064,-500.0,0.00036712,14]
[354608030,1740595886074,-500.0,0.00036712,14]
[354608032,1740595886083,-500.0,0.00036712,14]
[354608034,1740595886095,-1596.62,0.00036712,14]
[354608036,1740595886104,-1876.78,0.00036712,14]
[354608038,1740595886114,-1560.4,0.00036712,14]
[354608040,1740595886124,-617.06,0.00036712,14]
[354608042,1740595886134,-1676.26,0.00036712,14]
[354608044,1740595886144,-6192.85,0.00036712,14]
[354608046,1740595886154,-647.32,0.00036712,14]
[354608048,1740595886164,-500.0,0.00036712,14]
[354608050,1740595886174,-1726.29,0.00036712,14]
[354608052,1740595886184,-2725.95,0.00036712,14]
[354608054,1740595886194,-563.72,0.00036712,14]
[354608056,1740595886204,-944.42,0.00036712,14]
[354608058,1740595886213,-500.0,0.00036712,14]
[354608060,1740595886222,-3837.57,0.00036712,14]
[354608061,1740595886231,-1361.35,0.00036712,14]
[354608063,1740595886240,-1302.57,0.00036712,14]
[354608065,1740595886250,-688.53,0.00036712,14]
[354608067,1740595886259,-11693.75,0.00036712,14]
[354608069,1740595886270,-2812.52,0.00036712,14]
[354608071,1740595886279,-861.86,0.00036712,14]
[354608073,1740595886289,-3063.11,0.00036712,14]
[354608075,1740595886299,-1132.99,0.00036712,14]
[354608077,1740595886309,-500.0,0.00036712,14]
[354608079,1740595886318,-2332.02,0.00036712,14]
[354608081,1740595886327,-3032.5,0.00036712,14]
[354608083,1740595886337,-1403.52,0.00036712,14]
[354608085,1740595886348,-2514.92,0.00036712,14]
[354608087,1740595886358,-840.17,0.00036712,14]
[354608089,1740595886368,-3285.15,0.00036712,14]
[354608091,1740595886378,-2864.92,0.00036712,14]
[354608093,1740595886388,-1217.25,0.00036712,14]
[354608095,1740595886398,-829.58,0.00036712,14]
[354608097,1740595886408,-521.32,0.00036712,14]
[354608099,1740595886418,-1548.49,0.00036712,14]
[354608101,1740595886428,-1797.4,0.00036712,14]
[354608103,1740595886438,-500.0,0.00036712,14]
[354608105,1740595886448,-3783.79,0.00036712,14]
[354608107,1740595886458,-500.0,0.00036712,14]
[354608109,1740595886468,-1141.09,0.00036712,14]
[354608111,1740595886477,-577.91,0.00036712,14]
[354608113,1740595886487,-6297.9,0.00036712,14]
[354608115,1740595886497,-2194.13,0.00036712,14]
[354608117,1740595886508,-1289.77,0.00036712,14]
[354608119,1740595886519,-2625.14,0.00036712,14]
[354608121,1740595886528,-564.43,0.00036712,14]
[354608123,1740595886538,-2622.68,0.00036712,14]
[354608125,1740595886548,-3149.85,0.00036712,14]
[354608127,1740595886557,-806.4,0.00036712,14]
[354608129,1740595886567,-2632.85,0.00036712,14]
[354608131,1740595886577,-2112.2,0.00036712,14]
[354608132,1740595886586,-3833.32,0.00036712,14]
[354608134,1740595886599,-1648.8,0.00036712,14]
[354608136,1740595886608,-500.0,0.00036712,14]
[354608137,1740595886617,-5487.93,0.00036712,14]
[354608138,1740595886626,-2311.59,0.00036712,14]
[354608139,1740595886636,-974.58,0.00036712,14]
[354608140,1740595886646,-565.43,0.00036712,14]
[354608141,1740595886656,-1343.0,0.00036712,14]
[354608142,1740595886666,-11841.49,0.00036712,14]
[354608143,1740595886676,-567.13,0.00036712,14]
[354608144,1740595886685,-3413.54,0.00036712,14]
[354608145,1740595886694,-1833.27,0.00036712,14]
[354608146,1740595886703,-995.26,0.00036712,14]
[354608147,1740595886713,-7439.57,0.00036712,14]
[354608148,1740595886723,-3517.26,0.00036712,14]
[354608149,1740595886732,-1238.69,0.00036712,14]
[354608150,1740595886741,-1700.63,0.00036712,14]
[354608151,1740595886750,-2752.94,0.00036712,14]
[354608153,1740595886760,-4507.25,0.00036712,14]
[354608154,1740595886769,-1862.26,0.00036712,14]
[354608156,1740595886779,-1154.79,0.00036712,14]
[354608158,1740595886788,-639.34,0.00036712,14]
[354608160,1740595886798,-1572.85,0.00036712,14]
[354608162,1740595886807,-500.0,0.00036712,14]
[354608164,1740595886816,-3421.4,0.00036712,14]
[354608166,1740595886826,-1778.87,0.00036712,14]
[354608168,1740595886836,-1616.96,0.00036712,14]
[354608170,1740595886848,-696.16,0.00036712,14]
[354608172,1740595886859,-9182.73,0.00036712,14]
[354608174,1740595886869,-682.72,0.00036712,14]
[354608176,1740595886880,-683.41,0.00036712,14]
[354608178,1740595886891,-6709.93,0.00036712,14]
[354608180,1740595886901,-500.0,0.00036712,14]
[354608182,1740595886911,-4316.65,0.00036712,14]
[354608184,1740595886921,-682.23,0.00036712,14]
[354608186,1740595886931,-546.58,0.00036712,14]
[354608188,1740595886941,-3317.95,0.00036712,14]
[354608190,1740595886953,-1576.59,0.00036712,14]
[354608192,1740595886962,-604.02,0.00036712,14]
[354608194,1740595886973,-500.0,0.00036712,14]
[354608196,1740595886984,-876.15,0.00036712,14]
[354608198,1740595886998,-1898.38,0.00036712,14]
[354608200,1740595887009,-749.16,0.00036712,14]
[354608202,1740595887019,-3418.9,0.00036712,14]
[354608204,1740595887030,-500.0,0.00036712,14]
[354608206,1740595887040,-2938.03,0.00036712,14]
[354608208,1740595887050,-1228.02,0.00036712,14]
[354608210,1740595887061,-2258.95,0.00036712,14]
[354608212,1740595887074,-1052.77,0.00036712,14]
[354608214,1740595887085,-500.0,0.00036712,14]
[354608216,1740595887099,-932.43,0.00036712,14]
[354608218,1740595887109,-1087.18,0.00036712,14]
[354608220,1740595887120,-500.0,0.00036712,14]
[354608222,1740595887131,-3770.5,0.00036712,14]
[354608224,1740595887141,-4443.37,0.00036712,14]
[354608225,1740595887153,-841.55,0.00036712,14]
[354608228,1740595887164,-4370.98,0.00036712,14]
[354608230,1740595887175,-1077.8,0.00036712,14]
[354608232,1740595887186,-1662.55,0.00036712,14]
[354608234,1740595887197,-1684.75,0.00036712,14]
[354608236,1740595887207,-732.3,0.00036712,14]
[354608238,1740595887217,-669.42,0.00036712,14]
[354608240,1740595887227,-2153.43,0.00036712,14]
[354608242,1740595887236,-2455.03,0.00036712,14]
[354608243,1740595887246,-500.0,0.00036712,14]
[354608246,1740595887257,-500.0,0.00036712,14]
[354608247,1740595887268,-555.94,0.00036712,14]
[354608249,1740595887278,-8707.22,0.00036712,14]
[354608251,1740595887289,-1962.86,0.00036712,14]
[354608253,1740595887299,-661.77,0.00036712,14]
[354608255,1740595887309,-1465.58,0.00036712,14]
[354608258,1740595887319,-14121.36,0.00036712,14]
[354608260,1740595887329,-500.0,0.00036712,14]
[354608261,1740595887339,-3029.66,0.00036712,14]
[354608263,1740595887351,-3158.55,0.00036712,14]
[354608265,1740595887360,-1124.82,0.00036712,14]
[354608267,1740595887370,-677.06,0.00036712,14]
[354608269,1740595887380,-1234.59,0.00036712,14]
[354608271,1740595887389,-1087.29,0.00036712,14]
[354608273,1740595887400,-1184.83,0.00036712,14]
[354608275,1740595887409,-766.23,0.00036712,14]
[354608277,1740595887419,-527.05,0.00036712,14]
[354608279,1740595887428,-500.0,0.00036712,14]
[354608281,1740595887438,-1001.3,0.00036712,14]
[354608283,1740595887447,-617.69,0.00036712,14]
[354608285,1740595887456,-1731.67,0.00036712,14]
[354608287,1740595887467,-2099.68,0.00036712,14]
[354608289,1740595887476,-3138.97,0.00036712,14]
[354608291,1740595887486,-541.73050439,0.00036712,7]
[354608293,1740595887496,-1244.63,0.00036712,14]
[354608295,1740595887506,-850.11,0.00036712,14]
[354608297,1740595887516,-1394.32,0.00036712,14]
[354608299,1740595887525,-3802.94,0.00036712,14]
[354608301,1740595887535,-1086.92,0.00036712,14]
[354608303,1740595887544,-1256.63,0.00036712,14]
[354608305,1740595887554,-1776.24,0.00036712,14]
[354608307,1740595887563,-772.03,0.00036712,14]
[354608309,1740595887573,-500.0,0.00036712,14]
[354608311,1740595887583,-1264.32,0.00036712,14]
[354608313,1740595887594,-500.0,0.00036712,14]
[354608315,1740595887604,-773.62,0.00036712,14]
[354608317,1740595887615,-1317.17,0.00036712,14]
[354608319,1740595887624,-666.36,0.00036712,14]
[354608321,1740595887634,-500.0,0.00036712,14]
[354608323,1740595887644,-500.0,0.00036712,14]
[354608325,1740595887655,-2961.3,0.00036712,14]
[354608327,1740595887665,-4383.06,0.00036712,14]
[354608329,1740595887675,-1507.85,0.00036712,14]
[354608331,1740595887686,-1388.89,0.00036712,14]
[354608333,1740595887696,-556.93,0.00036712,14]
[354608334,1740595887707,-3155.81,0.00036712,14]
[354608337,1740595887717,-561.98,0.00036712,14]
[354608338,1740595887726,-2270.77,0.00036712,14]
[354608340,1740595887736,-593.99,0.00036712,14]
[354608342,1740595887746,-150.0,0.00036712,2]
[354608344,1740595887756,-150.0,0.00036712,2]
[354608346,1740595887766,-150.0,0.00036712,2]
[354608348,1740595887776,-150.0,0.00036712,2]
[354608350,1740595887786,-150.0,0.00036712,2]
[354608352,1740595887796,-150.0,0.00036712,2]
[354608354,1740595887806,-300.0,0.00036712,2]
[354608356,1740595887816,-150.0,0.00036712,2]
[354608358,1740595887825,-150.0,0.00036712,2]
[354608360,1740595887835,-150.0,0.00036712,2]
[354608362,1740595887847,-214.26,0.00036736,2]
[354608364,1740595887856,-500.0,0.00036763,120]
[354608366,1740595887866,-162.25,0.00036814,2]
[354608368,1740595887876,-150.0,0.00036848,30]
[354608370,1740595887885,-600.0,0.000369,13]
[354608372,1740595887896,-214.26,0.00036917,2]
[354608374,1740595887905,-200.0,0.00036925,120]
[354608376,1740595887916,-352.18540785,0.00036976,2]
[354608378,1740595887925,-150.0,0.00036985,30]
[354608380,1740595887935,-500.0,0.00036986,14]
[354608382,1740595887947,-500.0,0.00036986,14]
[354608384,1740595887961,-640.98692753,0.00036986,2]
[354608386,1740595887970,-647.09412973,0.00036986,2]
[354608388,1740595887980,-500.0,0.00036986,14]
[354608390,1740595887991,-2142.0,0.00036986,14]
[354608392,1740595888001,-1232.0,0.00036986,14]
[354608394,1740595888011,-151.0,0.00036986,7]
[354608396,1740595888020,-500.0,0.00036986,14]
[354608398,1740595888029,-672.636069,0.00036986,14]
[354608399,1740595888040,-500.0,0.00036986,14]
[354608401,1740595888049,-1501.590989,0.00036986,14]
[354608403,1740595888059,-676.71,0.00036986,14]
[354608405,1740595888069,-500.0,0.00036986,14]
[354608407,1740595888079,-870.39,0.00036986,14]
[354608409,1740595888089,-1090.2,0.00036986,14]
[354608411,1740595888100,-452.83993879,0.00036986,14]
[354608413,1740595888109,-1069.27,0.00036986,14]
[354608415,1740595888119,-814.89,0.00036986,14]
[354608417,1740595888129,-158.47464423,0.00036986,14]
[354608419,1740595888138,-500.0,0.00036986,14]
[354608421,1740595888148,-500.0,0.00036986,14]
[354608423,1740595888158,-500.0,0.00036986,14]
[354608425,1740595888167,-1150.39,0.00036986,14]
[354608427,1740595888176,-500.0,0.00036986,14]
[354608429,1740595888185,-500.0,0.00036986,14]
[354608431,1740595888195,-500.0,0.00036986,14]
[354608433,1740595888204,-701.36,0.00036986,14]
[354608435,1740595888213,-841.82,0.00036986,14]
[354608437,1740595888223,-500.0,0.00036986,14]
[354608439,1740595888232,-500.0,0.00036986,14]
[354608441,1740595888241,-500.0,0.00036986,14]
[354608443,1740595888251,-670.19,0.00036986,14]
[354608445,1740595888261,-500.0,0.00036986,14]
[354608447,1740595888270,-500.0,0.00036986,14]
[354608449,1740595888279,-300.0,0.00036986,14]
[354608451,1740595888289,-1844.05,0.00036986,14]
[354608453,1740595888299,-500.0,0.00036986,14]
[354608454,1740595888308,-747.92,0.00036986,14]
[354608456,1740595888318,-835.83,0.00036986,14]
[354608458,1740595888327,-1533.87,0.00036986,14]
[354608460,1740595888337,-738.6,0.00036986,14]
[354608462,1740595888348,-1414.25,0.00036986,14]
[354608464,1740595888357,-865.08,0.00036986,14]
[354608466,1740595888367,-633.98,0.00036986,14]
[354608468,1740595888377,-500.0,0.00036986,14]
[354608470,1740595888386,-600.33,0.00036986,14]
[354608472,1740595888396,-500.0,0.00036986,14]
[354608474,1740595888405,-580.36,0.00036986,14]
[354608476,1740595888415,-742.35,0.00036986,14]
[354608478,1740595888424,-500.0,0.00036986,14]
[354608480,1740595888434,-732.49,0.00036986,14]
[354608482,1740595888443,-527.1,0.00036986,14]
[354608484,1740595888453,-500.0,0.00036986,14]
[354608486,1740595888462,-500.0,0.00036986,14]
[354608488,1740595888471,-935.03,0.00036986,14]
[354608502,1740595888587,-543.41,0.00036986,14]
[354608504,1740595888605,-500.0,0.00036986,14]
[354608506,1740595888615,-500.0,0.00036986,14]
[354608508,1740595888624,-500.0,0.00036986,14]
[354608510,1740595888634,-581.31,0.00036986,14]
[354608512,1740595888643,-500.0,0.00036986,14]
[354608514,1740595888652,-689.42,0.00036986,14]
[354608516,1740595888662,-689.49,0.00036986,14]
[354608518,1740595888672,-744.35,0.00036986,14]
[354608520,1740595888681,-571.34,0.00036986,14]
[354608522,1740595888691,-696.87,0.00036986,14]
[354608524,1740595888700,-1290.39,0.00036986,14]
[354608526,1740595888710,-546.44,0.00036986,14]
[354608528,1740595888719,-344.62191401,0.00036986,14]
[354608530,1740595888728,-500.0,0.00036986,14]
[354608532,1740595888738,-594.86,0.00036986,14]
[354608534,1740595888747,-635.18,0.00036986,14]
[354608536,1740595888757,-500.0,0.00036986,14]
[354608538,1740595888766,-617.43,0.00036986,14]
[354608540,1740595888775,-858.4,0.00036986,14]
[354608542,1740595888785,-665.21,0.00036986,14]
[354608544,1740595888794,-500.0,0.00036986,14]
[354608546,1740595888804,-500.0,0.00036986,14]
[354608548,1740595888814,-500.0,0.00036986,14]
[354608550,1740595888823,-1850.02,0.00036986,14]
[354608552,1740595888832,-1161.63,0.00036986,14]
[354608554,1740595888845,-1036.04,0.00036986,14]
[354608556,1740595888854,-2240.29,0.00036986,14]
[354608558,1740595888863,-500.0,0.00036986,14]
[354608560,1740595888873,-500.0,0.00036986,14]
[354608562,1740595888882,-608.93,0.00036986,14]
[354608564,1740595888892,-500.0,0.00036986,14]
[354608566,1740595888901,-2310.8,0.00036986,14]
[354608568,1740595888911,-500.0,0.00036986,14]
[354608570,1740595888920,-500.0,0.00036986,14]
[354608572,1740595888930,-500.0,0.00036986,14]
[354608574,1740595888939,-500.0,0.00036986,14]
[354608576,1740595888951,-1018.81,0.00036986,14]
[354608579,1740595888964,-871.69,0.00036986,14]
[354608581,1740595888974,-500.0,0.00036986,14]
[354608583,1740595888984,-500.0,0.00036986,14]
[354608585,1740595889004,-500.0,0.00036986,14]
[354608587,1740595889014,-1006.27,0.00036986,14]
[354608589,1740595889025,-1116.49,0.00036986,14]
[354608591,1740595889035,-595.91,0.00036986,14]
[354608593,1740595889045,-641.45,0.00036986,14]
[354608595,1740595889055,-500.0,0.00036986,14]
[354608597,1740595889064,-500.0,0.00036986,14]
[354608599,1740595889073,-237.70132924,0.00036986,14]
[354608601,1740595889083,-772.83,0.00036986,14]
[354608603,1740595889095,-1308.99,0.00036986,14]
[354608605,1740595889105,-935.7,0.00036986,14]
[354608607,1740595889115,-872.15,0.00036986,14]
[354608609,1740595889124,-500.0,0.00036986,14]
[354608611,1740595889134,-500.0,0.00036986,14]
[354608613,1740595889144,-649.25,0.00036986,14]
[354608615,1740595889155,-500.0,0.00036986,14]
[354608617,1740595889165,-1082.33,0.00036986,14]
[354608619,1740595889176,-513.39,0.00036986,14]
[354608621,1740595889187,-500.0,0.00036986,14]
[354608623,1740595889198,-1176.81,0.00036986,14]
[354608625,1740595889209,-1686.11,0.00036986,14]
[354608627,1740595889219,-500.0,0.00036986,14]
[354608629,1740595889230,-538.09,0.00036986,14]
[354608631,1740595889239,-547.24,0.00036986,14]
[354608633,1740595889249,-500.0,0.00036986,14]
[354608635,1740595889259,-500.0,0.00036986,14]
[354608637,1740595889270,-811.61,0.00036986,14]
[354608639,1740595889280,-1804.38,0.00036986,14]
[354608641,1740595889291,-969.08,0.00036986,14]
[354608643,1740595889302,-2234.9,0.00036986,14]
[354608645,1740595889312,-877.13,0.00036986,14]
[354608647,1740595889323,-582.64,0.00036986,14]
[354608649,1740595889333,-1855.35,0.00036986,14]
[354608651,1740595889345,-500.0,0.00036986,14]
[354608653,1740595889355,-500.0,0.00036986,14]
[354608655,1740595889365,-500.0,0.00036986,14]
[354608657,1740595889375,-500.0,0.00036986,14]
[354608659,1740595889385,-500.0,0.00036986,14]
[354608661,1740595889394,-500.0,0.00036986,14]
[354608663,1740595889404,-1019.59,0.00036986,14]
[354608665,1740595889414,-356.90170955,0.00036986,14]
[354608667,1740595889423,-2120.11,0.00036986,14]
[354608669,1740595889433,-1021.29,0.00036986,14]
[354608671,1740595889443,-1613.94,0.00036986,14]
[354608673,1740595889453,-572.27,0.00036986,14]
[354608675,1740595889463,-1105.78,0.00036986,14]
[354608677,1740595889473,-500.0,0.00036986,14]
[354608680,1740595889483,-982.48,0.00036986,14]
[354608682,1740595889493,-500.0,0.00036986,14]
[354608684,1740595889503,-2258.29,0.00036986,14]
[354608685,1740595889512,-500.0,0.00036986,14]
[354608688,1740595889522,-500.0,0.00036986,14]
[354608690,1740595889532,-500.0,0.00036986,14]
[354608692,1740595889541,-1496.14,0.00036986,14]
[354608694,1740595889551,-782.62,0.00036986,14]
[354608696,1740595889561,-1313.98,0.00036986,14]
[354608698,1740595889570,-633.15,0.00036986,14]
[354608700,1740595889580,-500.0,0.00036986,14]
[354608702,1740595889589,-1614.67,0.00036986,14]
[354608704,1740595889602,-777.94,0.00036986,14]
[354608706,1740595889612,-500.0,0.00036986,14]
[354608708,1740595889621,-1119.74,0.00036986,14]
[354608710,1740595889631,-630.05,0.00036986,14]
[354608712,1740595889640,-500.0,0.00036986,14]
[354608714,1740595889650,-500.0,0.00036986,14]
[354608716,1740595889659,-1550.01,0.00036986,14]
[354608718,1740595889670,-898.54,0.00036986,14]
[354608720,1740595889679,-500.0,0.00036986,14]
[354608722,1740595889689,-986.29,0.00036986,14]
[354608724,1740595889699,-666.5,0.00036986,14]
[354608726,1740595889708,-1800.45,0.00036986,14]
[354608728,1740595889719,-1038.19,0.00036986,14]
[354608730,1740595889728,-722.35,0.00036986,14]
[354608732,1740595889737,-777.79,0.00036986,14]
[354608734,1740595889747,-1016.47,0.00036986,14]
[354608736,1740595889757,-583.31,0.00036986,14]
[354608738,1740595889766,-746.65,0.00036986,14]
[354608740,1740595889776,-529.67,0.00036986,14]
[354608742,1740595889786,-500.0,0.00036986,14]
[354608744,1740595889795,-500.0,0.00036986,14]
[354608746,1740595889805,-806.05,0.00036986,14]
[354608748,1740595889815,-886.7,0.00036986,14]
[354608750,1740595889824,-820.28,0.00036986,14]
[354608751,1740595889834,-1501.14,0.00036986,14]
[354608754,1740595889845,-500.0,0.00036986,14]
[354608755,1740595889855,-921.34,0.00036986,14]
[354608757,1740595889864,-500.0,0.00036986,14]
[354608759,1740595889874,-699.59,0.00036986,14]
[354608762,1740595889884,-1003.76,0.00036986,14]
[354608764,1740595889894,-500.0,0.00036986,14]
[354608766,1740595889903,-1495.63,0.00036986,14]
[354608768,1740595889913,-500.0,0.00036986,14]
[354608770,1740595889922,-834.44,0.00036986,14]
[354608772,1740595889932,-831.3,0.00036986,14]
[354608774,1740595889943,-675.74,0.00036986,14]
[354608776,1740595889953,-917.03,0.00036986,14]
[354608778,1740595889963,-551.68,0.00036986,14]
[354608780,1740595889972,-681.62,0.00036986,14]
[354608782,1740595889983,-1958.47,0.00036986,14]
[354608784,1740595889997,-1067.6,0.00036986,14]
[354608786,1740595890007,-500.0,0.00036986,14]
[354608788,1740595890017,-636.63,0.00036986,14]
[354608790,1740595890027,-1007.51,0.00036986,14]